[Event "XI Paracin Festival 2018"]
[Site "Paracin"]
[Date "2018.07.09"]
[Round "4"]
[White "Atalik, Suat"]
[Black "Abramovic, Bosko"]
[Result "1-0"]
[ECO "E04"]
[WhiteElo "2509"]
[BlackElo "2409"]
[Annotator "RC"]
[PlyCount "155"]
[EventDate "2018.07.06"]
[EventType "swiss"]
[EventCountry "SRB"]
[SourceTitle "playchess.com"]
[Source "ChessBase"]
[SourceQuality "1"]
[TimeControl "5400+30"]

1. d4 {[%emt 0:00:00]} Nf6 {[%emt 0:00:00]} 2. c4 {[%emt 0:00:00]} e6 {[%emt 0:00:00]} 3. Nf3 {[%emt 0:00:16]} d5 {[%emt 0:00:39]} 4. g3 {[%emt 0:00:20]} dxc4 {[%emt 0:00:54]} 5. Bg2 {[%emt 0:00:08]} Nc6 {[%emt 0:00:04]} 6. Qa4 {[%emt 0:01:33]} Nd7 {[%emt 0:00:07]} 7. Qxc4 {[%emt 0:00:09]} Nb6 {[%emt 0:00:07]} 8. Qb5 {[%emt 0:01:02]} a6 {[%emt 0:00:39]} 9. Qd3 {[%emt 0:01:35]} e5 {[%emt 0:00:47]} 10. Nxe5 {[%emt 0:02:01]} Nb4 {[%emt 0:00:54]} 11. Qd1 {[%emt 0:02:11]} Qxd4 {[%emt 0:00:43]} 12. Qxd4 {[%emt 0:00:07]} Nc2+ {[%emt 0:00:06]} 13. Kd1 {[%emt 0:00:21]} Nxd4 {[%emt 0:00:07]} 14. Be3 {[%emt 0:00:11]} Nb5 {[%emt 0:00:08]} 15. Bxb6 {[%emt 0:00:49]} cxb6 {[%emt 0:00:06]} 16. Nd2 {[%emt 0:00:13]} Nd6 {[%emt 0:01:29]} 17. Nec4 {[%emt 0:01:37]} b5 {[%emt 0:02:28]} 18. Nb6 {[%emt 0:00:52]} Rb8 {[%emt 0:00:05]} 19. Nxc8 {[%emt 0:00:51]} Rxc8 {[%emt 0:00:21]} 20. Rc1 {[%emt 0:00:29]} Kd8 {[%emt 0:00:37]} 21. Ne4 {[%emt 0:03:27]} Rxc1+ {[%emt 0:02:53]} 22. Kxc1 {[%emt 0:00:08]} Nxe4 {[%emt 0:02:31]} 23. Bxe4 {[%emt 0:00:09]} Kc7 {[%emt 0:00:01]} 24. Kb1 {[%emt 0:09:53]} g6 {[%emt 0:15:36]} 25. Rc1+ {[%emt 0:02:54]} Kb8 {[%emt 0:00:07]} 26. Rd1 {[%emt 0:00:22]} Kc7 {[%emt 0:00:08]} 27. Bd5 {[%emt 0:01:17]} f6 {[%emt 0:00:27]} 28. f4 {[%emt 0:00:44]} a5 {[%emt 0:07:28]} 29. Rc1+ {[%emt 0:04:10]} Kb8 {[%emt 0:00:15]} 30. e4 {[%emt 0:04:05]} Bd6 {[%emt 0:00:17]} 31. Rd1 {[%emt 0:02:34]} Rd8 {[%emt 0:01:36]} 32. Bg8 {[%emt 0:04:03]} h6 {[%emt 0:00:31]} 33. Bf7 {[%emt 0:07:56]} g5 {[%emt 0:01:45]} 34. e5 {[%emt 0:00:08]} Be7 {[%emt 0:01:16]} 35. Rxd8+ {[%emt 0:00:49]} Bxd8 {[%emt 0:00:05]} 36. fxg5 {[%emt 0:00:20]} fxg5 {[%emt 0:00:34]} 37. Kc2 {[%emt 0:01:16]} Bb6 {[%emt 0:13:28]} 38. Kd3 {[%emt 0:03:29]} Kc7 {[%emt 0:00:04]} 39. g4 {[%emt 0:04:36]} Bg1 {[%emt 0:00:29]} 40. h3 {[%emt 0:01:24]} Kd7 {[%emt 0:00:08]} 41. Ke4 {[%emt 0:00:26]} Ke7 {[%emt 0:00:24]} 42. Bd5 {[%emt 0:03:14]} b6 {[%emt 0:00:05]} 43. Kf5 {[%emt 0:11:03]} Bd4 {[%emt 0:00:17]} 44. b3 {[%emt 0:00:47]} b4 {[%emt 0:03:11]} 45. Bc4 {[%emt 0:02:38]} Bc3 {[%emt 0:00:19]} 46. Bb5 {[%emt 0:00:45]} Bd4 {[%emt 0:00:12]} 47. e6 {[%emt 0:00:31]} Bc5 {[%emt 0:02:33]} 48. Bd7 {[%emt 0:01:05]} Be3 {[%emt 0:00:39]} 49. Kg6 {[%emt 0:00:21]} Bf4 {[%emt 0:00:09]} 50. Kxh6 {[%emt 0:01:17]} Kf6 {[%emt 0:00:08]} 51. Bc8 {[%emt 0:00:12]} Be3 {[%emt 0:00:08]} 52. Kh5 {[%emt 0:00:34]} Bd2 {[%emt 0:06:24]} 53. h4 {[%emt 0:00:32]} gxh4 {[%emt 0:00:07]} 54. g5+ {[%emt 0:01:36]} Ke7 {[%emt 0:00:18]} 55. Kxh4 {[%emt 0:00:33]} Be3 {[%emt 0:01:17]} 56. Kh5 {[%emt 0:01:21]} Bd4 {[%emt 0:00:18]} 57. Kg4 {[%emt 0:03:10]} Be3 {[%emt 0:00:21]} 58. Bd7 {[%emt 0:00:14]} Bd2 {[%emt 0:00:49]} 59. Kf5 {[%emt 0:00:31]} Bc1 {[%emt 0:00:19]} 60. Bb5 {[%emt 0:00:24]} Bd2 {[%emt 0:00:13]} 61. Bc4 {[%emt 0:01:47]} Bc1 {[%emt 0:00:28]} 62. Bd5 {[%emt 0:01:37]} Bd2 {[%emt 0:01:24]} 63. g6 {[%emt 0:04:19]} Bc3 {[%emt 0:00:05]} 64. Ke4 {[%emt 0:00:03]} b5 {[%emt 0:00:18]} 65. Kf5 {[%emt 0:00:15]} a4 {[%emt 0:03:48]} 66. Bc6 {[%emt 0:00:20]} axb3 {[%emt 0:00:46]} 67. axb3 {[%emt 0:00:03]} Bd4 {[%emt 0:00:52]} 68. Bxb5 {[%emt 0:00:17]} Bg7 {[%emt 0:00:25]} 69. Bd7 {[%emt 0:00:53]} Kd6 {[%emt 0:00:05]} 70. Ke4 {[%emt 0:00:09]} Bf6 {[%emt 0:00:55]} 71. Kf5 {[%emt 0:02:39]} Bg7 {[%emt 0:00:12]} 72. Bb5 {[%emt 0:00:05]} Ke7 {[%emt 0:00:38]} 73. Be2 {[%emt 0:00:07]} Kd6 {[%emt 0:00:12]} 74. Bg4 {[%emt 0:00:05]} Ke7 {[%emt 0:00:34]} 75. Ke4 {[%emt 0:00:32]} Kd6 {[%emt 0:00:20]} 76. Bf5 {[%emt 0:00:31]} Bf6 {[%emt 0:01:51]} 77. Kd3 {[%emt 0:00:06]} Bc3 {[%emt 0:00:07]} 78. Ke4 {Kd5+} 1-0

[Event "XI Paracin Festival 2018"]
[Site "Paracin"]
[Date "2018.07.09"]
[Round "4"]
[White "Fernandez, Daniel Howard"]
[Black "Pantelic, Sasa"]
[Result "1-0"]
[ECO "A02"]
[WhiteElo "2477"]
[BlackElo "2316"]
[Annotator "RC"]
[PlyCount "73"]
[EventDate "2018.07.06"]
[EventType "swiss"]
[EventCountry "SRB"]
[SourceTitle "playchess.com"]
[Source "ChessBase"]
[SourceQuality "1"]
[TimeControl "5400+30"]

1. f4 {[%emt 0:05:55]} Nf6 {[%emt 0:00:00]} 2. Nf3 {[%emt 0:00:10]} g6 {[%emt 0:00:07]} 3. b3 {[%emt 0:03:05]} Bg7 {[%emt 0:00:40]} 4. Bb2 {[%emt 0:00:02]} O-O {[%emt 0:00:46]} 5. g3 {[%emt 0:05:21]} d6 {[%emt 0:01:11]} 6. Qc1 {[%emt 0:03:33]} c5 {[%emt 0:06:34]} 7. Bg2 {[%emt 0:00:27]} Nc6 {[%emt 0:00:53]} 8. O-O {[%emt 0:00:47]} Re8 {[%emt 0:03:19]} 9. c4 {[%emt 0:01:43]} e5 {[%emt 0:07:48]} 10. fxe5 {[%emt 0:00:03]} dxe5 {[%emt 0:00:29]} 11. Nc3 {[%emt 0:00:02]} e4 {[%emt 0:03:27]} 12. Ne1 {[%emt 0:05:19]} Bf5 {[%emt 0:04:08]} 13. Nc2 {[%emt 0:02:56]} Qd7 {[%emt 0:01:59]} 14. Ne3 {[%emt 0:00:17]} Bh3 {[%emt 0:07:15]} 15. Rxf6 {[%emt 0:04:21]} Bxg2 {[%emt 0:12:19]} 16. Rxc6 {[%emt 0:00:49]} bxc6 {[%emt 0:02:07]} 17. Kxg2 {[%emt 0:00:12]} Rad8 {[%emt 0:00:40]} 18. Nf1 {[%emt 0:04:32]} h5 {[%emt 0:03:10]} 19. Na4 {[%emt 0:00:18]} Qg4 {[%emt 0:01:11]} 20. Qe1 {[%emt 0:00:55]} Bxb2 {[%emt 0:02:07]} 21. Nxb2 {[%emt 0:00:03]} h4 {[%emt 0:00:25]} 22. h3 {[%emt 0:04:49]} Qg5 {[%emt 0:00:20]} 23. Na4 {[%emt 0:00:37]} hxg3 {[%emt 0:06:32]} 24. Qxg3 {[%emt 0:00:24]} Qh5 {[%emt 0:02:38]} 25. Qe3 {[%emt 0:10:22]} Qe5 {[%emt 0:06:04]} 26. Rd1 {[%emt 0:01:32]} Rd4 {[%emt 0:00:32]} 27. Ng3 {[%emt 0:00:37]} Kg7 {[%emt 0:02:12]} 28. h4 {[%emt 0:01:21]} Red8 {[%emt 0:05:29]} 29. h5 {[%emt 0:05:52]} gxh5 {[%emt 0:08:19]} 30. Rf1 {[%emt 0:00:14]} Rg8 {[%emt 0:00:34]} 31. Rf5 {[%emt 0:00:38]} Qd6 {[%emt 0:00:29]} 32. Rg5+ {[%emt 0:02:22]} Kf8 {[%emt 0:00:57]} 33. Nf5 {[%emt 0:00:23]} Rxg5+ {[%emt 0:02:27]} 34. Qxg5 {[%emt 0:00:03]} Qe5 {[%emt 0:00:37]} 35. Nxc5 {[%emt 0:00:46]} Rd6 {[%emt 0:02:47]} 36. Qxh5 {[%emt 0:02:30]} Rd8 {[%emt 0:02:21]} 37. Qh6+ {[%emt 0:00:15]} 1-0

[Event "XI Paracin Festival 2018"]
[Site "Paracin"]
[Date "2018.07.09"]
[Round "4"]
[White "Harsha Bharathakoti"]
[Black "Kadric, Denis"]
[Result "0-1"]
[ECO "E94"]
[WhiteElo "2465"]
[BlackElo "2522"]
[Annotator "ChessBase"]
[PlyCount "112"]
[EventDate "2018.07.06"]
[EventType "swiss"]
[EventCountry "SRB"]
[SourceTitle "playchess.com"]
[Source "ChessBase"]
[SourceQuality "1"]
[TimeControl "5400+30"]

1. Nf3 {[%emt 0:00:48]} d6 {[%emt 0:00:00]} 2. d4 {[%emt 0:00:16]} g6 {[%emt 0:00:00]} 3. c4 {[%emt 0:00:26]} Bg7 {[%emt 0:00:00]} 4. Nc3 {[%emt 0:00:18]} Nd7 {[%emt 0:00:00]} 5. e4 {[%emt 0:00:34]} e5 {[%emt 0:00:00]} 6. Be2 {[%emt 0:00:27]} Ngf6 {[%emt 0:00:05]} 7. O-O {[%emt 0:00:47]} O-O {[%emt 0:00:02]} 8. Be3 {[%emt 0:00:41]} Qe7 {[%emt 0:00:26]} 9. d5 {[%emt 0:04:18]} c5 {[%emt 0:00:19]} 10. Ne1 {[%emt 0:24:40]} Ne8 {[%emt 0:00:59]} 11. Nd3 {[%emt 0:09:04]} f5 {[%emt 0:00:04]} 12. f3 {[%emt 0:00:10]} Bf6 {[%emt 0:05:09]} 13. a3 {[%emt 0:09:25]} Nb6 {[%emt 0:16:32]} 14. b3 {[%emt 0:03:51]} Bg5 {[%emt 0:00:05]} 15. Bxg5 {[%emt 0:16:16]} Qxg5 {[%emt 0:00:03]} 16. f4 {[%emt 0:08:02]} exf4 {[%emt 0:00:59]} 17. Qd2 {[%emt 0:07:11]} Nf6 {[%emt 0:04:00]} 18. exf5 {[%emt 0:01:54]} Bxf5 {[%emt 0:00:53]} 19. Qxf4 {[%emt 0:01:49]} Qxf4 {[%emt 0:00:55]} 20. Nxf4 {[%emt 0:00:51]} Rae8 {[%emt 0:05:23]} 21. Nb5 {[%emt 0:02:52]} Nc8 {[%emt 0:01:03]} 22. Bd3 {[%emt 0:04:01]} Bxd3 {[%emt 0:02:11]} 23. Nxd3 {[%emt 0:00:04]} Re3 {[%emt 0:00:06]} 24. Nf4 {[%emt 0:01:41]} Nd7 {[%emt 0:01:23]} 25. b4 {[%emt 0:01:18]} Re4 {[%emt 0:02:22]} 26. Ne6 {[%emt 0:00:38]} Rxf1+ {[%emt 0:00:05]} 27. Rxf1 {[%emt 0:00:04]} cxb4 {[%emt 0:00:48]} 28. axb4 {[%emt 0:00:54]} Rxc4 {[%emt 0:00:27]} 29. Rf4 {[%emt 0:00:36]} Rxf4 {[%emt 0:04:48]} 30. Nxf4 {[%emt 0:00:04]} Nf6 {[%emt 0:00:08]} 31. Nc3 {[%emt 0:00:58]} Ne7 {[%emt 0:03:49]} 32. h4 {[%emt 0:00:17]} h6 {[%emt 0:00:17]} 33. Kf2 {[%emt 0:00:42]} a6 {[%emt 0:01:27]} 34. b5 {[%emt 0:00:26]} a5 {[%emt 0:00:44]} 35. Kf3 {[%emt 0:00:36]} g5 {[%emt 0:01:17]} 36. hxg5 {[%emt 0:00:03]} hxg5 {[%emt 0:00:02]} 37. Ne6 {[%emt 0:00:05]} Nexd5 {[%emt 0:01:06]} 38. Na4 {[%emt 0:00:30]} g4+ {[%emt 0:00:28]} 39. Kg3 {[%emt 0:00:20]} b6 {[%emt 0:00:33]} 40. Nf4 {[%emt 0:01:25]} Nc7 {[%emt 0:01:41]} 41. Nxb6 {[%emt 0:00:05]} Nxb5 {[%emt 0:00:02]} 42. Nfd5 {[%emt 0:00:53]} Nxd5 {[%emt 0:00:34]} 43. Nxd5 {[%emt 0:00:05]} a4 {[%emt 0:00:01]} 44. Kxg4 {[%emt 0:00:11]} a3 {[%emt 0:01:00]} 45. Nb4 {[%emt 0:00:12]} Nc3 {[%emt 0:04:52]} 46. Kf3 {[%emt 0:01:41]} Kf7 {[%emt 0:00:34]} 47. Nc2 {[%emt 0:00:05]} Nb5 {[%emt 0:01:26]} 48. Ke4 {[%emt 0:00:53]} Ke6 {[%emt 0:00:16]} 49. Nb4 {[%emt 0:00:32]} d5+ {[%emt 0:01:10]} 50. Kd3 {[%emt 0:00:01]} Ke5 {[%emt 0:00:16]} 51. g4 {[%emt 0:00:34]} d4 {[%emt 0:01:46]} 52. Kc4 {[%emt 0:00:40]} Ke4 {[%emt 0:00:15]} 53. g5 {[%emt 0:00:29]} Kf5 {[%emt 0:00:03]} 54. Na2 {[%emt 0:00:43]} Kxg5 {[%emt 0:00:17]} 55. Nc1 {[%emt 0:00:30]} Kf5 {[%emt 0:00:36]} 56. Kd5 {[%emt 0:00:31]} d3 {[%emt 0:00:23]} 0-1

[Event "XI Paracin Festival 2018"]
[Site "Paracin"]
[Date "2018.07.09"]
[Round "4"]
[White "Radovanovic, Nikola"]
[Black "Georgiev, Kiril"]
[Result "1/2-1/2"]
[ECO "B19"]
[WhiteElo "2425"]
[BlackElo "2596"]
[Annotator "ChessBase"]
[PlyCount "48"]
[EventDate "2018.07.06"]
[EventType "swiss"]
[EventCountry "SRB"]
[SourceTitle "playchess.com"]
[Source "ChessBase"]
[SourceQuality "1"]
[TimeControl "5400+30"]

1. e4 {[%emt 0:00:20]} c6 {[%emt 0:05:26]} 2. d4 {[%emt 0:00:55]} d5 {[%emt 0:00:08]} 3. Nd2 {[%emt 0:00:30]} dxe4 {[%emt 0:00:58]} 4. Nxe4 {[%emt 0:00:08]} Bf5 {[%emt 0:00:22]} 5. Ng3 {[%emt 0:00:25]} Bg6 {[%emt 0:00:09]} 6. h4 {[%emt 0:00:05]} h6 {[%emt 0:00:34]} 7. Nf3 {[%emt 0:00:11]} Nd7 {[%emt 0:04:00]} 8. h5 {[%emt 0:00:15]} Bh7 {[%emt 0:00:07]} 9. Bd3 {[%emt 0:00:09]} Bxd3 {[%emt 0:00:07]} 10. Qxd3 {[%emt 0:00:05]} Ngf6 {[%emt 0:00:11]} 11. Bd2 {[%emt 0:00:24]} e6 {[%emt 0:00:40]} 12. O-O-O {[%emt 0:00:09]} Qc7 {[%emt 0:00:40]} 13. Kb1 {[%emt 0:08:14]} Bd6 {[%emt 0:07:04]} 14. Ne4 {[%emt 0:01:41]} Nxe4 {[%emt 0:02:37]} 15. Qxe4 {[%emt 0:00:05]} Nf6 {[%emt 0:00:14]} 16. Qe2 {[%emt 0:00:30]} O-O-O {[%emt 0:00:11]} 17. c4 {[%emt 0:03:04]} c5 {[%emt 0:04:03]} 18. Bc3 {[%emt 0:03:03]} cxd4 {[%emt 0:07:57]} 19. Nxd4 {[%emt 0:02:16]} a6 {[%emt 0:00:16]} 20. Rc1 {[%emt 0:11:51]} Kb8 {[%emt 0:03:03]} 21. Nb3 {[%emt 0:06:53]} Qc6 {[%emt 0:04:57]} 22. c5 {[%emt 0:04:00]} Bc7 {[%emt 0:04:49]} 23. Rh4 {[%emt 0:01:42]} Rd7 {[%emt 0:09:59]} 24. Ba5 {[%emt 0:22:11]} Rhd8 {[%emt 0:05:36]} 1/2-1/2

[Event "XI Paracin Festival 2018"]
[Site "Paracin"]
[Date "2018.07.09"]
[Round "4"]
[White "Djordjevic, Vuk"]
[Black "Cerovic, Danilo"]
[Result "0-1"]
[ECO "A40"]
[WhiteElo "2403"]
[BlackElo "2294"]
[Annotator "NA"]
[PlyCount "84"]
[EventDate "2018.07.06"]
[EventType "swiss"]
[EventCountry "SRB"]
[SourceTitle "playchess.com"]
[Source "ChessBase"]
[SourceQuality "1"]
[TimeControl "5400+30"]

1. d4 {[%emt 0:00:00]} e6 {[%emt 0:04:11]} 2. Nf3 {[%emt 0:00:02]} Nf6 {[%emt 0:00:10]} 3. Bf4 {[%emt 0:00:12]} b6 {[%emt 0:00:42]} 4. e3 {[%emt 0:00:28]} Bb7 {[%emt 0:00:07]} 5. Nbd2 {[%emt 0:01:23]} d6 {[%emt 0:06:39]} 6. h3 {[%emt 0:03:44]} Nbd7 {[%emt 0:01:11]} 7. Bg3 {[%emt 0:03:49]} g6 {[%emt 0:05:15]} 8. Be2 {[%emt 0:08:32]} Bg7 {[%emt 0:01:02]} 9. O-O {[%emt 0:06:03]} O-O {[%emt 0:06:49]} 10. c4 {[%emt 0:04:57]} Qe7 {[%emt 0:01:02]} 11. Qc2 {[%emt 0:08:58]} e5 {[%emt 0:08:29]} 12. dxe5 {[%emt 0:09:46]} dxe5 {[%emt 0:02:01]} 13. a3 {[%emt 0:08:29]} c5 {[%emt 0:08:25]} 14. a4 {[%emt 0:02:01]} e4 {[%emt 0:08:55]} 15. Nh2 {[%emt 0:01:03]} Ne5 {[%emt 0:01:59]} 16. Nb1 {[%emt 0:01:43]} Nc6 {[%emt 0:08:45]} 17. Rd1 {[%emt 0:01:35]} Rfd8 {[%emt 0:02:23]} 18. Nc3 {[%emt 0:01:15]} Nb4 {[%emt 0:04:44]} 19. Qb3 {[%emt 0:00:42]} Nh5 {[%emt 0:07:46]} 20. Bxh5 {[%emt 0:02:51]} gxh5 {[%emt 0:00:28]} 21. Nf1 {[%emt 0:09:38]} Rd3 {[%emt 0:03:06]} 22. Rxd3 {[%emt 0:04:29]} exd3 {[%emt 0:01:02]} 23. Qd1 {[%emt 0:04:16]} Qg5 {[%emt 0:02:09]} 24. Nd2 {[%emt 0:04:06]} Rd8 {[%emt 0:04:58]} 25. e4 {[%emt 0:06:43]} Nc2 {[%emt 0:02:20]} 26. h4 {[%emt 0:02:58]} Qg4 {[%emt 0:02:58]} 27. Rb1 {[%emt 0:01:33]} Nd4 {[%emt 0:01:32]} 28. Qxg4 {[%emt 0:02:03]} hxg4 {[%emt 0:00:02]} 29. Kf1 {[%emt 0:00:28]} f5 {[%emt 0:01:02]} 30. Rd1 {[%emt 0:00:40]} Bh6 {[%emt 0:01:02]} 31. Nd5 {[%emt 0:00:26]} Bxd2 {[%emt 0:00:21]} 32. Rxd2 {[%emt 0:00:11]} fxe4 {[%emt 0:00:17]} 33. Nf6+ {[%emt 0:00:24]} Kf7 {[%emt 0:00:09]} 34. Nxg4 {[%emt 0:00:22]} Ke6 {[%emt 0:01:14]} 35. Ne3 {[%emt 0:01:04]} Bc6 {[%emt 0:00:33]} 36. a5 {[%emt 0:00:23]} Nb3 {[%emt 0:00:09]} 37. Rd1 {[%emt 0:00:04]} Nxa5 {[%emt 0:00:24]} 38. Ra1 {[%emt 0:00:43]} Rd4 {[%emt 0:01:22]} 39. b3 {[%emt 0:00:44]} Nxb3 {[%emt 0:01:00]} 40. Rxa7 {[%emt 0:00:01]} Nd2+ {[%emt 0:00:11]} 41. Ke1 {[%emt 0:00:27]} Nxc4 {[%emt 0:00:03]} 42. Kd1 {[%emt 0:00:11]} Ba4+ {[%emt 0:00:23]} 0-1

[Event "XI Paracin Festival 2018"]
[Site "Paracin"]
[Date "2018.07.09"]
[Round "4"]
[White "McPhillips, Joseph"]
[Black "Gomes, Mary Ann"]
[Result "0-1"]
[ECO "B90"]
[WhiteElo "2402"]
[BlackElo "2284"]
[Annotator "NA"]
[PlyCount "118"]
[EventDate "2018.07.06"]
[EventType "swiss"]
[EventCountry "SRB"]
[SourceTitle "playchess.com"]
[Source "ChessBase"]
[SourceQuality "1"]
[TimeControl "5400+30"]

1. e4 {[%emt 0:00:00]} c5 {[%emt 0:00:00]} 2. Nf3 {[%emt 0:00:00]} d6 {[%emt 0:00:00]} 3. d4 {[%emt 0:00:00]} cxd4 {[%emt 0:00:00]} 4. Nxd4 {[%emt 0:00:00]} Nf6 {[%emt 0:00:00]} 5. Nc3 {[%emt 0:00:00]} a6 {[%emt 0:00:04]} 6. Be3 {[%emt 0:00:00]} e5 {[%emt 0:00:05]} 7. Nb3 {[%emt 0:00:00]} Be6 {[%emt 0:00:07]} 8. f3 {[%emt 0:00:22]} Nbd7 {[%emt 0:00:07]} 9. Qd2 {[%emt 0:00:15]} b5 {[%emt 0:00:44] LiveBook: 717 Games} 10. O-O-O {[%emt 0:01:33]} Nb6 {[%emt 0:00:05]} 11. Qf2 {[%emt 0:01:28]} Nfd7 {[%emt 0:00:07]} 12. f4 {[%emt 0:06:10]} Rc8 {[%emt 0:08:04]} 13. f5 {[%emt 0:03:18]} Bc4 {[%emt 0:00:12]} 14. Bxc4 {[%emt 0:01:14]} Rxc4 $14 {[%emt 0:02:18]} 15. Qd2 {[%emt 0:05:07]} b4 {[%emt 0:11:05]} 16. Nd5 {[%emt 0:04:57]} Nxd5 {[%emt 0:00:09]} 17. Qxd5 {[%emt 0:00:20]} Qc8 {[%emt 0:00:06]} 18. Na5 {[%emt 0:17:40]} Rc7 {[%emt 0:04:09]} 19. Kb1 {[%emt 0:05:01]} Be7 {[%emt 0:00:07]} 20. g4 {[%emt 0:09:41]} h6 {[%emt 0:08:07]} 21. Qd3 {[%emt 0:12:49]} Nc5 {[%emt 0:05:41]} 22. Bxc5 {[%emt 0:01:08]} Rxc5 {[%emt 0:00:06]} 23. Nb3 {[%emt 0:00:09]} Rc6 {[%emt 0:08:02]} 24. h4 {[%emt 0:00:24]} Bd8 {[%emt 0:01:19]} 25. g5 {[%emt 0:01:48]} a5 {[%emt 0:00:50]} 26. Qb5 {[%emt 0:05:59]} Qa6 {[%emt 0:06:55]} 27. Qa4 {[%emt 0:02:12]} Ke7 {[%emt 0:12:11]} 28. f6+ {[%emt 0:00:48]} gxf6 {[%emt 0:00:12]} 29. gxf6+ {[%emt 0:00:03]} Kf8 {[%emt 0:00:38]} 30. Rd5 {[%emt 0:02:48]} Rg8 {[%emt 0:05:08]} 31. Nxa5 {[%emt 0:03:46]} Rc5 {[%emt 0:00:05]} 32. Qd7 {[%emt 0:03:57]} Bxf6 {[%emt 0:00:06]} 33. Rxd6 {[%emt 0:02:29]} Qe2 {[%emt 0:00:59]} 34. Rd2 {[%emt 0:03:47]} Qa6 {[%emt 0:13:33]} 35. Nb3 {[%emt 0:00:44]} Rc6 {[%emt 0:00:17]} 36. Qf5 {[%emt 0:01:24]} Qb6 {[%emt 0:09:29]} 37. Rf2 {[%emt 0:02:04]} Rg7 {[%emt 0:01:10]} 38. Nc1 {[%emt 0:01:09]} Qd4 {[%emt 0:01:52]} 39. Qf3 {[%emt 0:00:34]} Rg4 {[%emt 0:01:45]} 40. Rhf1 {[%emt 0:02:13]} Rf4 {[%emt 0:00:44]} 41. Qg2 {[%emt 0:00:58]} Rxf2 {[%emt 0:00:17]} 42. Rxf2 {[%emt 0:00:01]} Bxh4 {[%emt 0:00:10]} 43. Rd2 {[%emt 0:00:10]} Qe3 {[%emt 0:01:40]} 44. Re2 {[%emt 0:01:01]} Qd4 {[%emt 0:00:30]} 45. Rd2 {[%emt 0:00:26]} Qe3 {[%emt 0:00:31]} 46. Re2 {[%emt 0:00:02]} Qd4 {[%emt 0:00:35]} 47. Qh2 {[%emt 0:00:42]} Bg5 {[%emt 0:00:13]} 48. Nd3 {[%emt 0:00:02]} Qxd3 {[%emt 0:00:13]} 49. Re1 {[%emt 0:03:16]} Qd4 {[%emt 0:00:55]} 50. Rf1 {[%emt 0:00:30]} Qxe4 {[%emt 0:00:43]} 51. Qf2 {[%emt 0:00:19]} Rf6 {[%emt 0:00:49]} 52. Qc5+ {[%emt 0:00:15]} Kg7 {[%emt 0:00:16]} 53. Rd1 {[%emt 0:00:07]} Rc6 {[%emt 0:00:35]} 54. Qf2 {[%emt 0:00:15]} Qc4 {[%emt 0:00:15]} 55. Qf5 {[%emt 0:00:30]} e4 {[%emt 0:00:44]} 56. Qe5+ {[%emt 0:00:36]} Kg6 {[%emt 0:00:30]} 57. c3 {[%emt 0:00:40]} bxc3 {[%emt 0:00:11]} 58. Rd6+ {[%emt 0:00:05]} Rxd6 {[%emt 0:00:09]} 59. Qxe4+ {[%emt 0:00:04]} Qxe4+ {[%emt 0:00:08]} 0-1

[Event "XI Paracin Festival 2018"]
[Site "Paracin"]
[Date "2018.07.09"]
[Round "4"]
[White "Atakisi, Umut"]
[Black "Cvetkovic, Nemanja"]
[Result "1/2-1/2"]
[ECO "B04"]
[WhiteElo "2390"]
[BlackElo "2278"]
[Annotator "NA"]
[PlyCount "148"]
[EventDate "2018.07.06"]
[EventType "swiss"]
[EventCountry "SRB"]
[SourceTitle "playchess.com"]
[Source "ChessBase"]
[SourceQuality "1"]
[TimeControl "5400+30"]

1. e4 {[%emt 0:03:43]} Nf6 {[%emt 0:00:00]} 2. e5 {[%emt 0:00:06]} Nd5 {[%emt 0:00:00]} 3. d4 {[%emt 0:00:06]} d6 {[%emt 0:00:00]} 4. Nf3 {[%emt 0:00:05]} dxe5 {[%emt 0:00:12]} 5. Nxe5 {[%emt 0:00:04]} c6 {[%emt 0:00:19]} 6. Be2 {[%emt 0:00:22]} Bf5 {[%emt 0:01:01]} 7. O-O {[%emt 0:00:20]} Nd7 {[%emt 0:04:17]} 8. Nf3 {[%emt 0:00:16]} e6 {[%emt 0:01:36]} 9. c4 {[%emt 0:00:35]} N5f6 {[%emt 0:01:49]} 10. Nh4 {[%emt 0:00:40]} Bxb1 {[%emt 0:03:28]} 11. Rxb1 {[%emt 0:01:43]} Bd6 {[%emt 0:00:39]} 12. g3 {[%emt 0:08:09]} O-O {[%emt 0:04:12]} 13. b4 {[%emt 0:02:53]} a6 {[%emt 0:18:57]} 14. a4 {[%emt 0:02:17]} b5 {[%emt 0:01:46]} 15. d5 {[%emt 0:20:12]} exd5 {[%emt 0:09:57]} 16. axb5 {[%emt 0:07:59]} axb5 {[%emt 0:04:54]} 17. Nf5 {[%emt 0:01:36]} Ne5 {[%emt 0:14:58]} 18. cxb5 {[%emt 0:01:24]} cxb5 {[%emt 0:00:45]} 19. Be3 {[%emt 0:03:19]} Ne4 {[%emt 0:11:08]} 20. Qxd5 {[%emt 0:01:11]} Nc3 {[%emt 0:00:27]} 21. Qxd6 {[%emt 0:00:26]} Nxe2+ {[%emt 0:00:02]} 22. Kg2 {[%emt 0:00:26]} Nc4 {[%emt 0:01:28]} 23. Ne7+ {[%emt 0:13:17]} Kh8 {[%emt 0:00:02]} 24. Qxd8 {[%emt 0:00:16]} Rfxd8 {[%emt 0:01:20]} 25. Rbd1 {[%emt 0:02:49]} Nc3 {[%emt 0:03:35]} 26. Rxd8+ {[%emt 0:01:43]} Rxd8 {[%emt 0:00:01]} 27. Bc5 {[%emt 0:02:49]} Rd2 {[%emt 0:04:16]} 28. Re1 {[%emt 0:01:19]} h6 {[%emt 0:01:07]} 29. Nf5 {[%emt 0:01:00]} Rd5 {[%emt 0:04:33]} 30. g4 {[%emt 0:01:55]} Ne5 {[%emt 0:02:01]} 31. h3 {[%emt 0:06:55]} Nd3 {[%emt 0:01:36]} 32. Re8+ {[%emt 0:01:01]} Kh7 {[%emt 0:00:01]} 33. Bd4 {[%emt 0:02:38]} Nf4+ {[%emt 0:00:02]} 34. Kh2 {[%emt 0:01:47]} Nce2 {[%emt 0:01:53]} 35. Be3 {[%emt 0:02:44]} Ng6 {[%emt 0:01:37]} 36. Bxh6 {[%emt 0:02:49]} Nd4 {[%emt 0:00:47]} 37. Bxg7 {[%emt 0:01:23]} Nxf5 {[%emt 0:01:06]} 38. gxf5 {[%emt 0:00:06]} Kxg7 {[%emt 0:00:42]} 39. fxg6 {[%emt 0:00:05]} Rd4 {[%emt 0:01:58]} 40. gxf7 {[%emt 0:00:35]} Kxf7 {[%emt 0:00:01]} 41. Rb8 {[%emt 0:00:16]} Rxb4 {[%emt 0:00:05]} 42. Kg3 {[%emt 0:00:17]} Rb1 {[%emt 0:00:27]} 43. Kf4 {[%emt 0:00:25]} b4 {[%emt 0:00:51]} 44. Kf5 {[%emt 0:00:05]} b3 {[%emt 0:00:20]} 45. Rb7+ {[%emt 0:00:17]} Kg8 {[%emt 0:00:15]} 46. h4 {[%emt 0:01:30]} b2 {[%emt 0:01:40]} 47. h5 {[%emt 0:00:38]} Kf8 {[%emt 0:00:39]} 48. Kf6 {[%emt 0:00:23]} Kg8 {[%emt 0:00:32]} 49. Rb4 {[%emt 0:01:44]} Kh7 {[%emt 0:00:12]} 50. Rb8 {[%emt 0:00:17]} Rh1 {[%emt 0:00:41]} 51. Rxb2 {[%emt 0:00:21]} Rxh5 {[%emt 0:00:03]} 52. f4 {[%emt 0:01:05]} Rh6+ {[%emt 0:00:23]} 53. Kf7 {[%emt 0:00:39]} Rh5 {[%emt 0:00:55]} 54. Rf2 {[%emt 0:01:24]} Rf5+ {[%emt 0:00:02]} 55. Ke6 {[%emt 0:00:01]} Ra5 {[%emt 0:00:27]} 56. Rd2 {[%emt 0:02:04]} Kg7 {[%emt 0:00:44]} 57. Rd7+ {[%emt 0:00:48]} Kf8 {[%emt 0:00:45]} 58. Rd6 {[%emt 0:00:19]} Ra7 {[%emt 0:00:46]} 59. f5 {[%emt 0:00:37]} Re7+ {[%emt 0:00:22]} 60. Kf6 {[%emt 0:00:05]} Rf7+ {[%emt 0:00:13]} 61. Kg5 {[%emt 0:00:48]} Ra7 {[%emt 0:00:49]} 62. Rh6 {[%emt 0:01:20]} Ra2 {[%emt 0:00:44]} 63. Rb6 {[%emt 0:00:22]} Ra7 {[%emt 0:00:25]} 64. Rf6+ {[%emt 0:00:47]} Kg7 {[%emt 0:00:11]} 65. Rg6+ {[%emt 0:00:17]} Kf7 {[%emt 0:00:11]} 66. Rh6 {[%emt 0:00:04]} Ra1 {[%emt 0:00:22]} 67. Rh7+ {[%emt 0:00:22]} Kg8 {[%emt 0:00:33]} 68. Re7 {[%emt 0:00:02]} Kf8 {[%emt 0:01:01]} 69. Re6 {[%emt 0:00:15]} Kf7 {[%emt 0:00:20]} 70. Rf6+ {[%emt 0:00:14]} Kg7 {[%emt 0:00:09]} 71. Rg6+ {[%emt 0:00:36]} Kf7 {[%emt 0:00:06]} 72. Rc6 {[%emt 0:03:06]} Rg1+ {[%emt 0:00:07]} 73. Kh6 {[%emt 0:00:23]} Rf1 {[%emt 0:00:21]} 74. Kg5 {[%emt 0:00:43]} Rg1+ 1/2-1/2